[Event "Fast Chess"]
[Site "ChessKid.com"]
[Date "2020.05.03"]
[Round "1"]
[White "Horvath, Alexander"]
[Black "Georgiev, Maximilian"]
[Result "1-0"]
[ECO "B27"]
[WhiteElo "1323"]
[BlackElo "721"]
[Annotator "passives Spiel, warten auf den Tod"]
[PlyCount "67"]
[EventDate "2020.??.??"]
[TimeControl "180"]
[WhiteClock "0:01:46"]
[BlackClock "0:01:19"]

1. e4 {[%emt 0:00:02]} c5 {[%emt 0:00:01]} 2. Nf3 {[%emt 0:00:02]} g6 {[%emt 0:
00:00]} 3. Nc3 {[%emt 0:00:02]} Bg7 {[%emt 0:00:01]} 4. Bc4 {[%emt 0:00:02]} e6
{[%emt 0:00:02]} 5. O-O {[%emt 0:00:04]} Ne7 {[%emt 0:00:02]} 6. b3 {[%emt 0:
00:01]} Nbc6 {[%emt 0:00:01]} 7. Bb2 {[%emt 0:00:01]} O-O {[%emt 0:00:01]} 8.
Qc1 {[%emt 0:00:05]} b6 {[%emt 0:00:02]} 9. Bb5 {[%emt 0:00:02]} Bb7 {[%emt 0:
00:01]} 10. Bxc6 {[%emt 0:00:02]} Bxc6 {[%emt 0:00:00]} 11. Na4 {[%emt 0:00:01]
} a6 {[%emt 0:00:06]} 12. Bxg7 {[%emt 0:00:02]} Kxg7 {[%emt 0:00:02]} 13. Qb2+
{[%emt 0:00:02]} Kg8 {[%emt 0:00:01]} 14. Nc3 {[%emt 0:00:03]} a5 {[%emt 0:00:
06]} 15. a3 {[%emt 0:00:02]} Ra6 {[%emt 0:00:02]} 16. b4 {[%emt 0:00:02]} cxb4
{[%emt 0:00:02]} 17. axb4 {[%emt 0:00:02]} Qc7 {[%emt 0:00:06]} 18. bxa5 $2 {
[%emt 0:00:02]} bxa5 {[%emt 0:00:02]} 19. Nb5 {[%emt 0:00:03]} Bxb5 {[%emt 0:
00:04]} 20. Qxb5 {[%emt 0:00:02]} Qa7 {[%emt 0:00:02]} 21. Ra4 {[%emt 0:00:06]}
Ra8 {[%emt 0:00:06]} 22. Rfa1 {[%emt 0:00:02]} Nc6 {[%emt 0:00:01]} 23. e5 {
[%emt 0:00:04]} Kh8 $2 {[%emt 0:00:03]} 24. c3 {[%emt 0:00:14]} Kg7 {[%emt 0:
00:01]} 25. d4 {[%emt 0:00:03]} Kf8 $4 {[%emt 0:00:02]} 26. Ng5 {[%emt 0:00:03]
} Kg7 {[%emt 0:00:02]} 27. h3 {[%emt 0:00:07]} Kg8 {[%emt 0:00:02]} 28. Kh2 {
[%emt 0:00:02]} Kg7 {[%emt 0:00:02]} 29. g3 {[%emt 0:00:02]} Kg8 {[%emt 0:00:
02]} 30. Kg2 {[%emt 0:00:02]} Kg7 {[%emt 0:00:01]} 31. d5 {[%emt 0:00:04]} exd5
{[%emt 0:00:03]} 32. Qxd5 {[%emt 0:00:02]} h6 {[%emt 0:00:03]} 33. Qxf7+ {
[%emt 0:00:03]} Kh8 {[%emt 0:00:03]} 34. Qh7# {[%emt 0:00:04] KeenOrangeTeeth
won by checkmate} 1-0

[Event "Fast Chess"]
[Site "ChessKid.com"]
[Date "2020.05.03"]
[Round "2"]
[White "Georgiev, Maximilian"]
[Black "Li, Tobias"]
[Result "1-0"]
[ECO "A30"]
[WhiteElo "737"]
[BlackElo "1295"]
[Annotator "Bauerngabel"]
[PlyCount "77"]
[EventDate "2020.??.??"]
[TimeControl "180"]
[BlackClock "0:00:46"]

1. c4 {[%emt 0:00:00]} c5 {[%emt 0:00:03]} 2. g3 {[%emt 0:00:01]} Nc6 {[%emt 0:
00:02]} 3. Bg2 {[%emt 0:00:01]} e5 {[%emt 0:00:01]} 4. e3 {[%emt 0:00:01]} d6 {
[%emt 0:00:01]} 5. h3 {[%emt 0:00:03]} Nf6 {[%emt 0:00:02]} 6. Ne2 {[%emt 0:00:
01]} Be7 {[%emt 0:00:05]} 7. Nbc3 {[%emt 0:00:02]} O-O {[%emt 0:00:02]} 8. O-O
{[%emt 0:00:01]} Bf5 {[%emt 0:00:04]} 9. b3 {[%emt 0:00:03]} Nb4 {[%emt 0:00:
05]} 10. a3 {[%emt 0:00:09]} Nc2 {[%emt 0:00:04]} 11. Ra2 {[%emt 0:00:01]} Qa5
{[%emt 0:00:16]} 12. d3 {[%emt 0:00:11]} Nxe3 {[%emt 0:00:12]} 13. fxe3 {
[%emt 0:00:04]} Bg6 {[%emt 0:00:13]} 14. Bd2 {[%emt 0:00:06]} Qb6 {[%emt 0:00:
03]} 15. Nd5 {[%emt 0:00:05]} Nxd5 {[%emt 0:00:03]} 16. Bxd5 {[%emt 0:00:01]}
Bxd3 {[%emt 0:00:13]} 17. Rf2 {[%emt 0:00:02]} Bxe2 {[%emt 0:00:03]} 18. Qxe2 {
[%emt 0:00:02]} Qxb3 {[%emt 0:00:04]} 19. Ra1 {[%emt 0:00:02]} Qb2 {[%emt 0:00:
06]} 20. Rff1 {[%emt 0:00:02]} Bf6 {[%emt 0:00:13]} 21. Rfb1 {[%emt 0:00:08]}
Qc2 {[%emt 0:00:10]} 22. Bxb7 {[%emt 0:00:05]} Rab8 {[%emt 0:00:05]} 23. Rb5 {
[%emt 0:00:07]} e4 {[%emt 0:00:07]} 24. Re1 {[%emt 0:00:09]} Qd3 {[%emt 0:00:
15]} 25. Qxd3 {[%emt 0:00:04]} exd3 {[%emt 0:00:02]} 26. Bc6 {[%emt 0:00:03]}
Rxb5 {[%emt 0:00:02]} 27. Bxb5 {[%emt 0:00:01]} Rb8 {[%emt 0:00:05]} 28. Ba4 {
[%emt 0:00:03]} Rb2 {[%emt 0:00:02]} 29. Bc1 {[%emt 0:00:05]} Ra2 {[%emt 0:00:
01]} (29... d2 $1) 30. Bc6 {[%emt 0:00:11]} Ra1 {[%emt 0:00:01]} 31. Bd2 {
[%emt 0:00:05]} Rxe1+ {[%emt 0:00:02]} 32. Bxe1 {[%emt 0:00:01]} Bb2 {[%emt 0:
00:01]} 33. Kf2 {[%emt 0:00:02]} Bxa3 {[%emt 0:00:03]} 34. Bd2 {[%emt 0:00:02]}
Bb4 {[%emt 0:00:01]} 35. Bc1 {[%emt 0:00:04]} a5 {[%emt 0:00:03]} 36. Ba4 {
[%emt 0:00:02]} Kf8 {[%emt 0:00:02]} 37. Kf1 {[%emt 0:00:02]} Ke7 {[%emt 0:00:
00]} 38. Kf2 {[%emt 0:00:01]} Kd8 {[%emt 0:00:02]} 39. Kf3 {[%emt 0:00:01]
TallSnazzyBall won on time} 1-0

[Event "Fast Chess"]
[Site "ChessKid.com"]
[Date "2020.05.03"]
[Round "3"]
[White "Horvath, Alexander"]
[Black "Li, Tobias"]
[Result "0-1"]
[ECO "C57"]
[WhiteElo "1324"]
[BlackElo "1304"]
[PlyCount "30"]
[EventDate "2020.??.??"]
[TimeControl "180"]
[WhiteClock "0:02:42"]
[BlackClock "0:02:11"]

1. e4 {[%emt 0:00:02]} e5 {[%emt 0:00:03]} 2. Nf3 {[%emt 0:00:02]} Nc6 {
[%emt 0:00:00]} 3. Bc4 {[%emt 0:00:02]} Nf6 {[%emt 0:00:00]} 4. Nc3 {[%emt 0:
00:03]} Bc5 {[%emt 0:00:02]} 5. Ng5 {[%emt 0:00:01]} O-O {[%emt 0:00:00]} 6.
Bxf7+ {[%emt 0:00:02]} Rxf7 {[%emt 0:00:01]} 7. Nxf7 {[%emt 0:00:01]} Kxf7 {
[%emt 0:00:00]} 8. O-O {[%emt 0:00:01]} Kg8 {[%emt 0:00:01]} 9. d3 {[%emt 0:00:
01]} d6 {[%emt 0:00:01]} 10. Nd5 {[%emt 0:00:03]} Bg4 {[%emt 0:00:00]} 11.
Nxf6+ {[%emt 0:00:11]} Qxf6 {[%emt 0:00:02]} 12. Qxg4 {[%emt 0:00:02]} Rf8 {
[%emt 0:00:02]} 13. a3 {[%emt 0:00:11]} Bxf2+ {[%emt 0:00:02]} 14. Rxf2 {
[%emt 0:00:07]} Qxf2+ {[%emt 0:00:02]} 15. Kh1 {[%emt 0:00:02]} Qf1# {[%emt 0:
00:02] OnlyHungryKiwi won by checkmate} 0-1

[Event "Fast Chess"]
[Site "ChessKid.com"]
[Date "2020.05.03"]
[Round "3"]
[White "Georgiev, Maximilian"]
[Black "Sasse, Gabriel"]
[Result "1-0"]
[ECO "C50"]
[WhiteElo "753"]
[BlackElo "1329"]
[PlyCount "125"]
[EventDate "2020.??.??"]
[TimeControl "180"]
[WhiteClock "0:00:51"]
[BlackClock "0:00:59"]

1. e4 {[%emt 0:00:02]} e5 {[%emt 0:00:00]} 2. Nf3 {[%emt 0:00:01]} Nc6 {
[%emt 0:00:01]} 3. Bc4 {[%emt 0:00:01]} Bc5 {[%emt 0:00:00]} 4. O-O {[%emt 0:
00:01]} h6 {[%emt 0:00:01]} 5. h3 {[%emt 0:00:01]} Nf6 {[%emt 0:00:00]} 6. Nc3
{[%emt 0:00:01]} O-O {[%emt 0:00:01]} 7. d3 {[%emt 0:00:01]} a6 {[%emt 0:00:01]
} 8. a3 {[%emt 0:00:00]} b5 {[%emt 0:00:01]} 9. Ba2 {[%emt 0:00:02]} Nd4 {
[%emt 0:00:03]} 10. Nxe5 {[%emt 0:00:01]} Re8 {[%emt 0:00:04]} 11. Nf3 {
[%emt 0:00:03]} Nxf3+ {[%emt 0:00:01]} 12. Qxf3 {[%emt 0:00:01]} Bd4 {[%emt 0:
00:08]} 13. Bd2 {[%emt 0:00:03]} Bxc3 {[%emt 0:00:01]} 14. Bxc3 {[%emt 0:00:01]
} a5 {[%emt 0:00:01]} 15. b4 {[%emt 0:00:06]} a4 {[%emt 0:00:01]} 16. Bb2 {
[%emt 0:00:02]} Bb7 {[%emt 0:00:03]} 17. Bxf6 {[%emt 0:00:02]} Qxf6 {[%emt 0:
00:04]} 18. Qxf6 {[%emt 0:00:01]} gxf6 {[%emt 0:00:01]} 19. Rfe1 {[%emt 0:00:
01]} f5 {[%emt 0:00:03]} 20. exf5 {[%emt 0:00:02]} Re2 {[%emt 0:00:01]} 21.
Rxe2 {[%emt 0:00:02]} Kh8 {[%emt 0:00:05]} 22. Bxf7 {[%emt 0:00:03]} Rf8 {
[%emt 0:00:03]} 23. Bg6 {[%emt 0:00:02]} Rg8 {[%emt 0:00:03]} 24. Bh5 {[%emt 0:
00:02]} Rxg2+ {[%emt 0:00:03]} 25. Kf1 {[%emt 0:00:03]} Rg8 {[%emt 0:00:02]}
26. Rae1 {[%emt 0:00:03]} Bg2+ {[%emt 0:00:02]} 27. Kg1 {[%emt 0:00:02]} Bf3+ {
[%emt 0:00:02]} 28. Kh2 {[%emt 0:00:01]} Bxe2 {[%emt 0:00:01]} 29. Rxe2 {
[%emt 0:00:00]} Rg5 {[%emt 0:00:03]} 30. Bf3 {[%emt 0:00:02]} Rxf5 {[%emt 0:00:
01]} 31. Bg4 {[%emt 0:00:02]} Rf7 {[%emt 0:00:06]} 32. Re8+ {[%emt 0:00:02]}
Kg7 {[%emt 0:00:05]} 33. Rb8 {[%emt 0:00:04]} Rxf2+ {[%emt 0:00:02]} 34. Kg3 {
[%emt 0:00:02]} Rxc2 {[%emt 0:00:01]} 35. Rxb5 {[%emt 0:00:02]} Ra2 {[%emt 0:
00:02]} 36. Rb7 {[%emt 0:00:02]} Rxa3 {[%emt 0:00:03]} 37. Rxc7 {[%emt 0:00:01]
} Rb3 {[%emt 0:00:00]} 38. Rxd7+ {[%emt 0:00:02]} Kf6 {[%emt 0:00:03]} 39. Rd6+
{[%emt 0:00:04]} Ke5 {[%emt 0:00:02]} 40. Re6+ {[%emt 0:00:02]} Kd4 {[%emt 0:
00:02]} 41. Rd6+ {[%emt 0:00:04]} Ke3 {[%emt 0:00:01]} 42. Rxh6 {[%emt 0:00:07]
} a3 {[%emt 0:00:02]} 43. Ra6 {[%emt 0:00:04]} Kxd3 {[%emt 0:00:03]} 44. Bf5+ {
[%emt 0:00:05]} Kc3 {[%emt 0:00:03]} 45. Be6 {[%emt 0:00:05]} Kxb4+ {[%emt 0:
00:09]} 46. Bxb3 {[%emt 0:00:02]} Kxb3 {[%emt 0:00:01]} 47. Rxa3+ {[%emt 0:00:
01]} Kxa3 {[%emt 0:00:01]} 48. h4 {[%emt 0:00:01]} Kb4 {[%emt 0:00:01]} 49. h5
{[%emt 0:00:00]} Kc4 {[%emt 0:00:01]} 50. h6 {[%emt 0:00:00]} Kc3 {[%emt 0:00:
01]} 51. h7 {[%emt 0:00:00]} Kc2 {[%emt 0:00:01]} 52. h8=Q {[%emt 0:00:00]} Kd2
{[%emt 0:00:02]} 53. Qd8+ {[%emt 0:00:00]} Kc3 {[%emt 0:00:01]} 54. Kf4 {
[%emt 0:00:01]} Kc4 {[%emt 0:00:01]} 55. Ke5 {[%emt 0:00:01]} Kc3 {[%emt 0:00:
01]} 56. Ke4 {[%emt 0:00:01]} Kc2 {[%emt 0:00:02]} 57. Qd4 {[%emt 0:00:02]} Kb3
{[%emt 0:00:03]} 58. Qc5 {[%emt 0:00:04]} Kb2 {[%emt 0:00:01]} 59. Kd3 {
[%emt 0:00:01]} Kb1 {[%emt 0:00:03]} 60. Qc3 {[%emt 0:00:01]} Ka2 {[%emt 0:00:
02]} 61. Qb4 {[%emt 0:00:03]} Ka1 {[%emt 0:00:02]} 62. Kc2 {[%emt 0:00:01]} Ka2
{[%emt 0:00:02]} 63. Qb2# {[%emt 0:00:01] TallSnazzyBall won by checkmate} 1-0

[Event "Fast Chess"]
[Site "ChessKid.com"]
[Date "2020.05.05"]
[Round "1"]
[White "Georgiev, Maximilian"]
[Black "Halimi, Dorian"]
[Result "1-0"]
[ECO "A03"]
[WhiteElo "922"]
[BlackElo "1205"]
[PlyCount "101"]
[EventDate "2020.??.??"]
[TimeControl "300+10"]
[WhiteClock "0:00:57"]
[BlackClock "0:02:56"]

1. f4 {[%emt 0:00:11]} d5 {[%emt 0:00:16]} 2. e3 {[%emt 0:00:12]} e6 {[%emt 0:
00:12]} 3. d4 {[%emt 0:00:11]} Nf6 {[%emt 0:00:13]} 4. c3 {[%emt 0:00:11]} Nc6
{[%emt 0:00:11]} 5. b3 {[%emt 0:00:11]} Bd7 {[%emt 0:00:13]} 6. Ne2 {[%emt 0:
00:12]} h6 {[%emt 0:00:17]} 7. g3 {[%emt 0:00:11]} a6 {[%emt 0:00:11]} 8. Bg2 {
[%emt 0:00:11]} b5 {[%emt 0:00:14]} 9. O-O {[%emt 0:00:11]} Bd6 {[%emt 0:00:12]
} 10. Nd2 {[%emt 0:00:11]} O-O {[%emt 0:00:11]} 11. Bb2 {[%emt 0:00:11]} g5 {
[%emt 0:00:11]} 12. fxg5 {[%emt 0:00:14]} hxg5 {[%emt 0:00:10]} 13. Nc1 {
[%emt 0:00:15]} a5 {[%emt 0:00:15]} 14. Qf3 {[%emt 0:00:12]} a4 {[%emt 0:00:16]
} 15. bxa4 {[%emt 0:00:13]} Rxa4 {[%emt 0:00:12]} 16. Qxf6 {[%emt 0:00:11]}
Qxf6 {[%emt 0:00:12]} 17. Rxf6 {[%emt 0:00:10]} b4 {[%emt 0:00:18]} 18. cxb4 {
[%emt 0:00:11]} Bxb4 {[%emt 0:00:12]} 19. Ndb3 {[%emt 0:00:17]} Kg7 {[%emt 0:
00:31]} 20. Rf1 {[%emt 0:00:11]} Rh8 {[%emt 0:00:11]} 21. Kh1 {[%emt 0:00:12]}
Rh7 {[%emt 0:00:11]} 22. Nd3 {[%emt 0:00:11]} Ra8 {[%emt 0:00:20]} 23. Nxb4 {
[%emt 0:00:12]} Nxb4 {[%emt 0:00:12]} 24. a3 {[%emt 0:00:10]} Nc2 {[%emt 0:00:
13]} 25. Ra2 {[%emt 0:00:11]} Nxe3 {[%emt 0:00:12]} 26. Rf2 {[%emt 0:00:14]}
Rah8 {[%emt 0:00:15]} 27. Bf3 {[%emt 0:00:18]} Nc4 {[%emt 0:00:21]} 28. Bc3 {
[%emt 0:00:13]} Bc6 {[%emt 0:00:19]} 29. Nc5 {[%emt 0:00:13]} e5 {[%emt 0:00:
18]} 30. Bg4 {[%emt 0:00:16]} e4 {[%emt 0:00:19]} 31. Bd7 {[%emt 0:00:13]} Bxd7
{[%emt 0:00:12]} 32. Nxd7 {[%emt 0:00:11]} e3 {[%emt 0:00:16]} 33. Rfe2 {
[%emt 0:00:12]} f5 {[%emt 0:00:19]} 34. Ne5 {[%emt 0:00:12]} f4 {[%emt 0:00:14]
} 35. gxf4 {[%emt 0:00:13]} gxf4 {[%emt 0:00:11]} 36. Nxc4 {[%emt 0:00:12]} Rf8
{[%emt 0:00:17]} 37. Ne5 {[%emt 0:00:15]} Rh6 {[%emt 0:00:27]} 38. Ra1 {
[%emt 0:00:19]} f3 {[%emt 0:00:17]} 39. Rg1+ {[%emt 0:00:12]} Kf6 {[%emt 0:00:
12]} 40. Rxe3 {[%emt 0:00:12]} Ke6 {[%emt 0:00:15]} 41. Nxf3+ {[%emt 0:00:15]}
Kd6 {[%emt 0:00:12]} 42. Bb4+ {[%emt 0:00:13]} Kc6 {[%emt 0:00:13]} 43. Bxf8 {
[%emt 0:00:10]} Rf6 {[%emt 0:00:13]} 44. Ne5+ {[%emt 0:00:13]} Kb5 {[%emt 0:00:
13]} 45. Rb1+ {[%emt 0:00:15]} Ka4 {[%emt 0:00:11]} 46. Reb3 {[%emt 0:00:14]}
Rxf8 {[%emt 0:00:16]} 47. Rb4+ {[%emt 0:00:11]} Kxa3 {[%emt 0:00:11]} 48. Rb7 {
[%emt 0:00:13]} Ka2 {[%emt 0:00:17]} 49. R1b5 {[%emt 0:00:13]} Rf1+ {[%emt 0:
00:20]} 50. Kg2 {[%emt 0:00:11]} Rb1 {[%emt 0:00:24]} 51. Ra5# {[%emt 0:00:10]
TallSnazzyBall won by checkmate} 1-0

[Event "Fast Chess"]
[Site "ChessKid.com"]
[Date "2020.05.05"]
[Round "2"]
[White "Georgiev, Maximilian"]
[Black "Li, Tobias"]
[Result "1-0"]
[ECO "A30"]
[WhiteElo "937"]
[BlackElo "1305"]
[PlyCount "85"]
[EventDate "2020.??.??"]
[TimeControl "300+10"]
[WhiteClock "0:01:03"]
[BlackClock "0:03:00"]

1. c4 {[%emt 0:00:11]} c5 {[%emt 0:00:12]} 2. g3 {[%emt 0:00:10]} Nc6 {[%emt 0:
00:15]} 3. Bg2 {[%emt 0:00:10]} Nf6 {[%emt 0:00:15]} 4. e3 {[%emt 0:00:11]} e5
{[%emt 0:00:11]} 5. Ne2 {[%emt 0:00:11]} d6 {[%emt 0:00:12]} 6. f3 {[%emt 0:00:
11]} Bf5 {[%emt 0:00:10]} 7. O-O {[%emt 0:00:14]} Nb4 {[%emt 0:00:11]} 8. Na3 {
[%emt 0:00:15]} g5 {[%emt 0:00:24]} 9. b3 {[%emt 0:00:18]} d5 {[%emt 0:00:13]}
10. cxd5 {[%emt 0:00:11]} Qxd5 {[%emt 0:00:14]} 11. Nc3 {[%emt 0:00:16]} Qd6 {
[%emt 0:00:14]} 12. Nab5 {[%emt 0:00:11]} Qb6 {[%emt 0:00:15]} 13. Na3 {
[%emt 0:00:18]} Bd3 {[%emt 0:00:13]} 14. Rf2 {[%emt 0:00:13]} Qa6 {[%emt 0:00:
18]} 15. Bb2 {[%emt 0:00:25]} O-O-O {[%emt 0:00:23]} 16. Ne2 {[%emt 0:00:24]}
Bxe2 {[%emt 0:00:22]} 17. Qxe2 {[%emt 0:00:11]} Qxe2 {[%emt 0:00:14]} 18. Rxe2
{[%emt 0:00:10]} Bh6 {[%emt 0:00:27]} 19. Bxe5 {[%emt 0:00:12]} Bg7 {[%emt 0:
00:20]} 20. Bh3+ {[%emt 0:00:14]} Nd7 {[%emt 0:00:34]} 21. Bxg7 {[%emt 0:00:12]
} Rhg8 {[%emt 0:00:14]} 22. Bc3 {[%emt 0:00:11]} Nd5 {[%emt 0:00:13]} 23. Nb5 {
[%emt 0:00:16]} Kb8 {[%emt 0:00:15]} 24. Ba5 {[%emt 0:00:21]} Rde8 {[%emt 0:00:
13]} 25. Bxd7 {[%emt 0:00:13]} Re5 {[%emt 0:00:18]} 26. e4 {[%emt 0:00:13]} Nf6
{[%emt 0:00:12]} 27. Bc7+ {[%emt 0:00:11]} Ka8 {[%emt 0:00:14]} 28. Bxe5 {
[%emt 0:00:11]} Ne8 {[%emt 0:00:20]} 29. Bxe8 {[%emt 0:00:12]} Rxe8 {[%emt 0:
00:12]} 30. Nc7+ {[%emt 0:00:10]} Kb8 {[%emt 0:00:15]} 31. Nxe8+ {[%emt 0:00:
09]} Ka8 {[%emt 0:00:12]} 32. d4 {[%emt 0:00:12]} cxd4 {[%emt 0:00:15]} 33.
Bxd4 {[%emt 0:00:10]} a6 {[%emt 0:00:11]} 34. Rc2 {[%emt 0:00:11]} b5 {[%emt 0:
00:13]} 35. Nc7+ {[%emt 0:00:12]} Kb7 {[%emt 0:00:11]} 36. a4 {[%emt 0:00:13]}
bxa4 {[%emt 0:00:20]} 37. bxa4 {[%emt 0:00:11]} h6 {[%emt 0:00:19]} 38. Nxa6 {
[%emt 0:00:12]} Kxa6 {[%emt 0:00:26]} 39. Rb1 {[%emt 0:00:10]} Ka5 {[%emt 0:00:
13]} 40. Rb8 {[%emt 0:00:12]} Kxa4 {[%emt 0:00:12]} 41. Ra8+ {[%emt 0:00:09]}
Kb4 {[%emt 0:00:12]} 42. Rb8+ {[%emt 0:00:11]} Ka4 {[%emt 0:00:12]} 43. Ra2# {
[%emt 0:00:11] TallSnazzyBall won by checkmate} 1-0

[Event "Fast Chess"]
[Site "ChessKid.com"]
[Date "2020.05.05"]
[Round "2"]
[White "Halimi, Dorian"]
[Black "Li, Patrick"]
[Result "0-1"]
[ECO "C55"]
[WhiteElo "1196"]
[BlackElo "1139"]
[PlyCount "104"]
[EventDate "2020.??.??"]
[TimeControl "300+10"]
[WhiteClock "0:02:08"]
[BlackClock "0:02:35"]

1. e4 {[%emt 0:00:11]} e5 {[%emt 0:00:12]} 2. Nc3 {[%emt 0:00:11]} Nf6 {
[%emt 0:00:13]} 3. Bc4 {[%emt 0:00:11]} Bc5 {[%emt 0:00:19]} 4. Nf3 {[%emt 0:
00:11]} Nc6 {[%emt 0:00:10]} 5. Ng5 {[%emt 0:00:11]} O-O {[%emt 0:00:11]} 6.
Nxf7 {[%emt 0:00:13]} Rxf7 {[%emt 0:00:10]} 7. Bxf7+ {[%emt 0:00:11]} Kxf7 {
[%emt 0:00:09]} 8. O-O {[%emt 0:00:14]} d6 {[%emt 0:00:14]} 9. h3 {[%emt 0:00:
11]} Be6 {[%emt 0:00:24]} 10. d3 {[%emt 0:00:13]} Kg8 {[%emt 0:00:13]} 11. Qf3
{[%emt 0:00:14]} Qf8 {[%emt 0:00:17]} 12. Be3 {[%emt 0:00:24]} Bxe3 {[%emt 0:
00:19]} 13. fxe3 {[%emt 0:00:13]} Nd7 {[%emt 0:00:10]} 14. Qxf8+ {[%emt 0:00:
16]} Rxf8 {[%emt 0:00:14]} 15. Rxf8+ {[%emt 0:00:12]} Kxf8 {[%emt 0:00:10]} 16.
Rf1+ {[%emt 0:00:12]} Kg8 {[%emt 0:00:10]} 17. Nd5 {[%emt 0:00:14]} Bxd5 {
[%emt 0:00:14]} 18. exd5 {[%emt 0:00:10]} Nb4 {[%emt 0:00:11]} 19. d4 {[%emt 0:
00:18]} exd4 {[%emt 0:00:15]} 20. exd4 {[%emt 0:00:10]} Nxc2 {[%emt 0:00:10]}
21. Rc1 {[%emt 0:00:14]} Nxd4 {[%emt 0:00:11]} 22. Rxc7 {[%emt 0:00:12]} Nc5 {
[%emt 0:00:18]} 23. Rc8+ {[%emt 0:00:14]} Kf7 {[%emt 0:00:12]} 24. Kf2 {
[%emt 0:00:11]} Na4 {[%emt 0:00:26]} 25. b3 {[%emt 0:00:14]} Nc5 {[%emt 0:00:
11]} 26. Ke3 {[%emt 0:00:11]} Nf5+ {[%emt 0:00:14]} 27. Kf4 {[%emt 0:00:14]}
Ne7 {[%emt 0:00:11]} 28. Rc7 {[%emt 0:00:14]} Kf6 {[%emt 0:00:15]} 29. b4 {
[%emt 0:00:12]} Nd3+ {[%emt 0:00:16]} 30. Ke4 {[%emt 0:00:13]} Nxb4 {[%emt 0:
00:12]} 31. a3 {[%emt 0:00:13]} Na6 {[%emt 0:00:23]} 32. Rxb7 {[%emt 0:00:13]}
Nc5+ {[%emt 0:00:12]} 33. Kd4 {[%emt 0:00:16]} Nxb7 {[%emt 0:00:11]} 34. a4 {
[%emt 0:00:20]} Nf5+ {[%emt 0:00:12]} 35. Kc4 {[%emt 0:00:13]} Ne3+ {[%emt 0:
00:21]} 36. Kb5 {[%emt 0:00:12]} Nxg2 {[%emt 0:00:09]} 37. Kc6 {[%emt 0:00:12]}
Nc5 {[%emt 0:00:11]} 38. Kxd6 {[%emt 0:00:17]} Nxa4 {[%emt 0:00:11]} 39. Kc6 {
[%emt 0:00:10]} Nc3 {[%emt 0:00:18]} 40. d6 {[%emt 0:00:10]} Ke6 {[%emt 0:00:
11]} 41. d7 {[%emt 0:00:12]} Ke7 {[%emt 0:00:14]} 42. Kc7 {[%emt 0:00:11]} Nd5+
{[%emt 0:00:11]} 43. Kc6 {[%emt 0:00:12]} Nb6 {[%emt 0:00:14]} 44. Kc7 {
[%emt 0:00:16]} Nxd7 {[%emt 0:00:11]} 45. Kb7 {[%emt 0:00:13]} a5 {[%emt 0:00:
10]} 46. Ka6 {[%emt 0:00:11]} a4 {[%emt 0:00:09]} 47. Ka5 {[%emt 0:00:10]} a3 {
[%emt 0:00:09]} 48. Kb5 {[%emt 0:00:11]} a2 {[%emt 0:00:10]} 49. Kc6 {[%emt 0:
00:11]} a1=Q {[%emt 0:00:11]} 50. Kc7 {[%emt 0:00:12]} Qc3+ {[%emt 0:00:22]}
51. Kb7 {[%emt 0:00:12]} Qc5 {[%emt 0:00:14]} 52. Ka6 {[%emt 0:00:13]} Qb6# {
[%emt 0:00:12] WideClassyQuiz won by checkmate} 0-1

[Event "Fast Chess"]
[Site "ChessKid.com"]
[Date "2020.05.05"]
[Round "3"]
[White "Li, Patrick"]
[Black "Georgiev, Maximilian"]
[Result "0-1"]
[ECO "B27"]
[WhiteElo "1127"]
[BlackElo "950"]
[PlyCount "28"]
[EventDate "2020.??.??"]
[TimeControl "300+10"]
[WhiteClock "0:04:34"]
[BlackClock "0:04:30"]

1. e4 {[%emt 0:00:12]} c5 {[%emt 0:00:11]} 2. Nf3 {[%emt 0:00:12]} g6 {[%emt 0:
00:10]} 3. Nc3 {[%emt 0:00:13]} Bg7 {[%emt 0:00:11]} 4. Bc4 {[%emt 0:00:11]} e6
{[%emt 0:00:11]} 5. Ng5 {[%emt 0:00:10]} Qxg5 {[%emt 0:00:11]} 6. d4 {[%emt 0:
00:12]} Qxg2 {[%emt 0:00:11]} 7. Rf1 {[%emt 0:00:12]} cxd4 {[%emt 0:00:13]} 8.
Nb5 {[%emt 0:00:10]} Qxh2 {[%emt 0:00:16]} 9. Nc7+ {[%emt 0:00:13]} Qxc7 {
[%emt 0:00:11]} 10. b3 {[%emt 0:00:18]} d3 {[%emt 0:00:13]} 11. Rb1 {[%emt 0:
00:13]} dxc2 {[%emt 0:00:11]} 12. Qxc2 {[%emt 0:00:12]} Ne7 {[%emt 0:00:12]}
13. Bxe6 {[%emt 0:00:11]} Qxc2 {[%emt 0:00:15]} 14. Bxf7+ {[%emt 0:00:14]} Kxf7
{[%emt 0:00:11] TallSnazzyBall won by resignation} 0-1

[Event "Fast Chess"]
[Site "ChessKid.com"]
[Date "2020.05.05"]
[Round "1"]
[White "Horvath, Alexander"]
[Black "Halimi, Dorian"]
[Result "1-0"]
[ECO "C55"]
[WhiteElo "1322"]
[BlackElo "1203"]
[Annotator "Grundlinienschwäche"]
[PlyCount "65"]
[EventDate "2020.??.??"]
[TimeControl "300+10"]
[WhiteClock "0:02:58"]
[BlackClock "0:03:12"]

1. e4 {[%emt 0:00:13]} e5 {[%emt 0:00:11]} 2. Nf3 {[%emt 0:00:11]} Nc6 {
[%emt 0:00:11]} 3. Nc3 {[%emt 0:00:12]} Nf6 {[%emt 0:00:11]} 4. Bc4 {[%emt 0:
00:12]} g6 {[%emt 0:00:14]} 5. O-O {[%emt 0:00:15]} Bc5 {[%emt 0:00:13]} 6.
Nxe5 {[%emt 0:00:14]} Nxe5 {[%emt 0:00:12]} 7. d4 {[%emt 0:00:11]} Nxc4 {
[%emt 0:00:11]} 8. dxc5 {[%emt 0:00:12]} d6 {[%emt 0:00:18]} 9. cxd6 {[%emt 0:
00:17]} Nxd6 {[%emt 0:00:11]} 10. e5 {[%emt 0:00:11]} Nh5 {[%emt 0:00:26]} 11.
exd6 {[%emt 0:00:11]} cxd6 {[%emt 0:00:10]} 12. Re1+ {[%emt 0:00:13]} Be6 {
[%emt 0:00:15]} 13. Bh6 {[%emt 0:00:16]} Qd7 {[%emt 0:00:17]} 14. Nd5 {[%emt 0:
00:12]} O-O-O {[%emt 0:00:17]} 15. Rc1 {[%emt 0:00:12]} Bxd5 {[%emt 0:00:12]}
16. Qxd5 {[%emt 0:00:13]} Nf4 {[%emt 0:00:12]} 17. Bxf4 {[%emt 0:00:12]} Rhe8 {
[%emt 0:00:17]} 18. Rxe8 {[%emt 0:00:13]} Rxe8 {[%emt 0:00:10]} 19. Qa5 {
[%emt 0:00:14]} Qe7 {[%emt 0:00:15]} 20. h3 {[%emt 0:00:14]} b6 {[%emt 0:00:13]
} 21. Qc3+ {[%emt 0:00:13]} Kb7 {[%emt 0:00:14]} 22. Qf3+ {[%emt 0:00:12]} Kc8
{[%emt 0:00:13]} 23. c4 {[%emt 0:00:11]} g5 {[%emt 0:00:16]} 24. Bh2 $4 {
[%emt 0:00:13]} h6 {[%emt 0:00:15]} 25. Kh1 {[%emt 0:00:14]} Kc7 {[%emt 0:00:
15]} 26. c5 {[%emt 0:00:19]} bxc5 {[%emt 0:00:13]} 27. Rxc5+ {[%emt 0:00:11]}
Kb6 {[%emt 0:00:17]} 28. Rc3 {[%emt 0:00:25]} a5 {[%emt 0:00:14]} 29. Rb3+ {
[%emt 0:00:12]} Ka6 {[%emt 0:00:11]} 30. Qd3+ {[%emt 0:00:15]} Ka7 {[%emt 0:00:
12]} 31. Qd4+ {[%emt 0:00:11]} Ka8 {[%emt 0:00:13]} 32. Qd5+ {[%emt 0:00:12]}
Ka7 {[%emt 0:00:15]} 33. Qxa5# {[%emt 0:00:10] KeenOrangeTeeth won by checkmate
} 1-0